[Event "GER-ch Youth U18 2019"]
[Site "Willingen"]
[Date "2019.06.09"]
[Round "1.5"]
[White "Roseneck, Jonas"]
[Black "Wendler, David"]
[Result "1-0"]
[ECO "B06"]
[WhiteElo "2403"]
[BlackElo "2166"]
[Annotator "NA RC"]
[PlyCount "161"]
[EventDate "2019.06.07"]
[EventType "swiss"]
[EventRounds "9"]
[EventCountry "GER"]
[SourceTitle "playchess.com"]
[Source "ChessBase"]
[SourceQuality "1"]
[TimeControl "40/5400+30:1800+30"]

1. e4 {[%emt 0:00:00]} g6 {[%emt 0:00:00]} 2. d4 {[%emt 0:00:00]} Bg7 {[%emt 0:00:03]} 3. Nf3 {[%emt 0:00:00]} d6 {[%emt 0:00:38]} 4. Bc4 {[%emt 0:00:00]} Nf6 {[%emt 0:00:57]} 5. Qe2 {[%emt 0:00:00]} Nc6 {[%emt 0:04:21]} 6. h3 {[%emt 0:11:25]} e5 {[%emt 0:07:18]} 7. dxe5 {[%emt 0:04:34]} Nxe5 {[%emt 0:05:34]} 8. Nxe5 {[%emt 0:02:29]} dxe5 {[%emt 0:00:06]} 9. Nc3 {[%emt 0:04:58]} c6 {[%emt 0:03:02]} 10. Be3 {[%emt 0:03:06]} Qe7 {[%emt 0:04:39]} 11. O-O {[%emt 0:05:36]} O-O {[%emt 0:09:22]} 12. a4 {[%emt 0:00:52]} Nd7 {[%emt 0:17:43]} 13. f3 {[%emt 0:11:35]} Re8 {[%emt 0:08:34]} 14. a5 {[%emt 0:05:07]} Nc5 {[%emt 0:05:34]} 15. Qf2 {[%emt 0:01:00]} Bf8 {[%emt 0:01:02]} 16. Rfd1 {[%emt 0:08:18]} Be6 {[%emt 0:03:54]} 17. Bxe6 {[%emt 0:01:49]} Nxe6 {[%emt 0:03:42]} 18. Na4 {[%emt 0:07:03]} a6 {[%emt 0:05:31]} 19. Bb6 {[%emt 0:01:56]} Qg5 {[%emt 0:07:06]} 20. Rd7 {[%emt 0:06:37]} Re7 {[%emt 0:00:15]} 21. Rad1 {[%emt 0:03:57]} Rae8 {[%emt 0:00:59]} 22. Kh2 {[%emt 0:03:58]} Rxd7 {[%emt 0:02:42]} 23. Rxd7 {[%emt 0:00:02]} Re7 {[%emt 0:00:16]} 24. Rd1 {[%emt 0:00:05]} f5 {[%emt 0:01:32]} 25. Be3 {[%emt 0:06:09]} Qf6 {[%emt 0:00:29]} 26. Nb6 {[%emt 0:01:14]} Rf7 {[%emt 0:04:12]} 27. exf5 {[%emt 0:04:01]} gxf5 {[%emt 0:00:14]} 28. Nd7 {[%emt 0:01:01]} Qg7 {[%emt 0:01:41]} 29. Nxf8 {[%emt 0:00:15]} Qxf8 {[%emt 0:01:31]} 30. Qh4 {[%emt 0:01:57]} Rg7 {[%emt 0:01:23]} 31. Bb6 {[%emt 0:03:18]} Qe7 {[%emt 0:00:28]} 32. Qc4 {[%emt 0:00:55]} Kh8 {[%emt 0:00:03]} 33. Rd2 {[%emt 0:01:09]} Rg8 {[%emt 0:00:30]} 34. Qc3 {[%emt 0:01:08]} Qg7 {[%emt 0:00:29]} 35. g4 {[%emt 0:00:39]} h5 {[%emt 0:00:55]} 36. Re2 {[%emt 0:00:37]} hxg4 {[%emt 0:00:32]} 37. Rxe5 {[%emt 0:00:15]} g3+ {[%emt 0:00:28]} 38. Kg1 {[%emt 0:00:11]} Ng5 {[%emt 0:00:40]} 39. Rxf5 {[%emt 0:01:41]} Qxc3 {[%emt 0:00:30]} 40. bxc3 {[%emt 0:00:01]} Nxh3+ {[%emt 0:00:32]} 41. Kg2 {[%emt 0:30:32]} Ng5 {[%emt 0:01:09]} 42. Kxg3 {[%emt 0:00:00]} Kh7 {[%emt 0:06:17]} 43. Kf4 {[%emt 0:00:00]} Kh6 {[%emt 0:02:38]} 44. Be3 {[%emt 0:00:00]} Ne6+ {[%emt 0:00:43]} 45. Ke5+ {[%emt 0:00:00]} Kg7 {[%emt 0:00:31]} 46. Bb6 {[%emt 0:00:00]} Re8 {[%emt 0:01:53]} 47. Kd6 {[%emt 0:00:00]} Nf8 {[%emt 0:04:42]} 48. Bd4+ {[%emt 0:00:00]} Kg6 {[%emt 0:00:26]} 49. Rf6+ {[%emt 0:00:00]} Kg5 {[%emt 0:00:51]} 50. Rf7 {[%emt 0:00:00]} Re6+ {[%emt 0:02:04]} 51. Kc5 {[%emt 0:00:00]} Ng6 {[%emt 0:00:22]} 52. Rxb7 {[%emt 0:00:00]} Ne7 {[%emt 0:00:27]} 53. Ra7 {[%emt 0:00:00]} Kf4 {[%emt 0:00:11]} 54. Rxa6 {[%emt 0:00:00]} Kxf3 {[%emt 0:00:15]} 55. Rb6 {[%emt 0:00:00]} Rg6 {[%emt 0:00:36]} 56. c4 {[%emt 0:00:00]} Ke4 {[%emt 0:00:59]} 57. c3 {[%emt 0:00:00]} Rg5+ {[%emt 0:02:03]} 58. Kb4 {[%emt 0:00:00]} Rg2 {[%emt 0:00:40]} 59. Kb3 {[%emt 0:00:00]} Kf5 {[%emt 0:00:35]} 60. a6 {[%emt 0:00:00]} Rg8 {[%emt 0:00:53]} 61. a7 {[%emt 0:00:00]} Ra8 {[%emt 0:00:19]} 62. Rb8 {[%emt 0:00:00]} Rxa7 {[%emt 0:00:07]} 63. Bxa7 {[%emt 0:00:00]} Ke6 {[%emt 0:00:07]} 64. Re8 {[%emt 0:00:00]} Kd7 {[%emt 0:00:08]} 65. Rxe7+ {[%emt 0:00:00]} Kxe7 {[%emt 0:00:09]} 66. Kb4 {[%emt 0:00:00]} Kd7 {[%emt 0:00:08]} 67. Kc5 {[%emt 0:00:00]} Kc7 {[%emt 0:00:13]} 68. Bb6+ {[%emt 0:00:00]} Kb7 {[%emt 0:00:07]} 69. Ba5 {[%emt 0:00:00]} Ka6 {[%emt 0:00:15]} 70. Kxc6 {[%emt 0:00:00]} Kxa5 {[%emt 0:00:32]} 71. Kb7 {[%emt 0:00:00]} Ka4 {[%emt 0:00:11]} 72. c5 {[%emt 0:00:00]} Kb5 {[%emt 0:00:08]} 73. c6 {[%emt 0:00:00]} Kc4 {[%emt 0:00:07]} 74. c7 {[%emt 0:00:00]} Kxc3 {[%emt 0:00:07]} 75. c8=Q+ {[%emt 0:00:00]} Kd4 {[%emt 0:00:10]} 76. Qf5 {[%emt 0:00:00]} Kc4 {[%emt 0:00:06]} 77. Qe5 {[%emt 0:00:00]} Kd3 {[%emt 0:00:10]} 78. Qf4 {[%emt 0:00:00]} Ke2 {[%emt 0:00:08]} 79. Qg3 {[%emt 0:00:00]} Kd2 {[%emt 0:00:10]} 80. Qf3 {[%emt 0:00:00]} Kc2 {[%emt 0:00:07]} 81. Qe3 {[%emt 0:00:00] normal Kd3 Qxd3} 1-0

[Event "GER-ch Youth U18 2019"]
[Site "Willingen"]
[Date "2019.06.09"]
[Round "1.7"]
[White "Ries, Alexander"]
[Black "Wong, Gengchun"]
[Result "1-0"]
[ECO "D26"]
[WhiteElo "1928"]
[BlackElo "2144"]
[Annotator "NA"]
[PlyCount "73"]
[EventDate "2019.06.07"]
[EventType "swiss"]
[EventRounds "9"]
[EventCountry "GER"]
[SourceTitle "playchess.com"]
[Source "ChessBase"]
[SourceQuality "1"]
[TimeControl "40/5400+30:1800+30"]

1. d4 {[%emt 0:00:00]} d5 {[%emt 0:00:00]} 2. c4 {[%emt 0:00:00]} dxc4 {[%emt 0:00:00]} 3. Nf3 {[%emt 0:01:24]} Nf6 {[%emt 0:00:00]} 4. e3 {[%emt 0:00:49]} e6 {[%emt 0:00:00]} 5. Bxc4 {[%emt 0:00:47]} c5 {[%emt 0:00:00]} 6. Qe2 {[%emt 0:08:44]} a6 {[%emt 0:02:16]} 7. dxc5 {[%emt 0:00:37]} Bxc5 {[%emt 0:00:30]} 8. O-O {[%emt 0:00:15]} b5 {[%emt 0:09:38]} 9. Bd3 {[%emt 0:01:26]} O-O {[%emt 0:00:23]} 10. a4 {[%emt 0:06:23]} b4 {[%emt 0:02:46]} 11. b3 {[%emt 0:02:45]} Bb7 {[%emt 0:20:44]} 12. Bb2 {[%emt 0:04:01]} Nbd7 {[%emt 0:08:46]} 13. Nbd2 {[%emt 0:04:17]} Qe7 {[%emt 0:06:13]} 14. Nc4 {[%emt 0:07:47]} Ne4 {[%emt 0:17:11]} 15. Rac1 {[%emt 0:16:15]} a5 {[%emt 0:07:34]} 16. Nd4 {[%emt 0:05:07]} e5 {[%emt 0:08:35]} 17. Nf5 {[%emt 0:05:29]} Qg5 {[%emt 0:02:35]} 18. Bxe4 {[%emt 0:07:12]} Bxe4 {[%emt 0:00:16]} 19. Ng3 {[%emt 0:00:05]} Bb7 {[%emt 0:02:19]} 20. Nxe5 {[%emt 0:04:06]} Nxe5 {[%emt 0:02:12]} 21. Rxc5 {[%emt 0:02:09]} Ba6 {[%emt 0:06:48]} 22. Rxe5 {[%emt 0:01:00]} Qxe5 {[%emt 0:00:14]} 23. Bxe5 {[%emt 0:00:06]} Bxe2 {[%emt 0:00:02]} 24. Nxe2 {[%emt 0:00:09]} f6 {[%emt 0:00:36]} 25. Bb2 {[%emt 0:00:34]} Rac8 {[%emt 0:00:33]} 26. Nd4 {[%emt 0:00:08]} f5 {[%emt 0:00:48]} 27. g3 {[%emt 0:00:37]} g6 {[%emt 0:00:35]} 28. Kg2 {[%emt 0:00:31]} Rfe8 {[%emt 0:00:20]} 29. Kf3 {[%emt 0:00:34]} Kf7 {[%emt 0:00:15]} 30. Ke2 {[%emt 0:00:12]} g5 {[%emt 0:01:05]} 31. Rc1 {[%emt 0:03:39]} Rxc1 {[%emt 0:01:15]} 32. Bxc1 {[%emt 0:00:07]} Kg6 {[%emt 0:00:09]} 33. Nc6 {[%emt 0:01:26]} Ra8 {[%emt 0:00:24]} 34. Ne5+ {[%emt 0:01:08]} Kf6 {[%emt 0:00:44]} 35. Bb2 {[%emt 0:00:11]} Ke6 {[%emt 0:00:46]} 36. Nc4 {[%emt 0:00:08]} g4 {[%emt 0:00:09]} 37. Bd4 {[%emt 0:00:12] normal} 1-0

[Event "GER-ch Youth U18 2019"]
[Site "Willingen"]
[Date "2019.06.09"]
[Round "1.11"]
[White "Vuckovic, Zarko"]
[Black "Lange, Jannis"]
[Result "1-0"]
[ECO "B24"]
[WhiteElo "2132"]
[BlackElo "2024"]
[Annotator "ChessBase"]
[PlyCount "45"]
[EventDate "2019.06.07"]
[EventType "swiss"]
[EventRounds "9"]
[EventCountry "GER"]
[SourceTitle "playchess.com"]
[Source "ChessBase"]
[SourceQuality "1"]
[TimeControl "40/5400+30:1800+30"]

1. e4 {[%emt 0:00:00]} c5 {[%emt 0:00:00]} 2. Nc3 {[%emt 0:00:00]} Nc6 {[%emt 0:00:00]} 3. g3 {[%emt 0:00:00]} g6 {[%emt 0:00:00]} 4. d3 {[%emt 0:00:00]} Bg7 {[%emt 0:00:06]} 5. Be3 {[%emt 0:00:00]} d6 {[%emt 0:00:07]} 6. Qd2 {[%emt 0:00:00]} Rb8 {[%emt 0:00:46]} 7. Bg2 {[%emt 0:00:06]} b5 {[%emt 0:00:34]} 8. f4 {[%emt 0:00:06]} b4 {[%emt 0:00:48]} 9. Nd1 {[%emt 0:00:02]} e6 {[%emt 0:01:31]} 10. Nf3 {[%emt 0:00:37]} Nd4 {[%emt 0:00:55]} 11. O-O {[%emt 0:02:34]} Ne7 {[%emt 0:01:27]} 12. Nh4 {[%emt 0:01:32]} O-O {[%emt 0:04:19]} 13. c3 {[%emt 0:03:32]} bxc3 {[%emt 0:01:07]} 14. bxc3 {[%emt 0:00:07]} Ndc6 {[%emt 0:00:05]} 15. f5 {[%emt 0:01:39]} exf5 {[%emt 0:08:13]} 16. exf5 {[%emt 0:00:10]} gxf5 {[%emt 0:01:20]} 17. Bg5 {[%emt 0:00:59]} Qa5 {[%emt 0:12:49]} 18. Bxc6 {[%emt 0:10:05]} Nxc6 {[%emt 0:00:06]} 19. Bh6 {[%emt 0:00:05]} Ne7 {[%emt 0:10:48]} 20. Bxg7 {[%emt 0:00:52]} Kxg7 {[%emt 0:00:08]} 21. Qg5+ {[%emt 0:00:17]} Ng6 {[%emt 0:00:07]} 22. Ne3 {[%emt 0:00:09]} Qxc3 {[%emt 0:13:41]} 23. Nexf5+ {[%emt 0:00:30] normal} 1-0

[Event "GER-ch Youth U18 2019"]
[Site "Willingen"]
[Date "2019.06.09"]
[Round "2.1"]
[White "Browning, Alex"]
[Black "Engel, Luis"]
[Result "0-1"]
[ECO "A29"]
[WhiteElo "2319"]
[BlackElo "2512"]
[Annotator "ChessBase"]
[PlyCount "56"]
[EventDate "2019.06.07"]
[EventType "swiss"]
[EventRounds "9"]
[EventCountry "GER"]
[SourceTitle "playchess.com"]
[Source "ChessBase"]
[SourceQuality "1"]
[TimeControl "40/5400+30:1800+30"]

1. c4 {[%emt 0:00:00]} e5 {[%emt 0:00:00]} 2. Nc3 {[%emt 0:00:00]} Nc6 {[%emt 0:00:00]} 3. Nf3 {[%emt 0:00:26]} Nf6 {[%emt 0:00:31]} 4. g3 {[%emt 0:00:36]} d5 {[%emt 0:00:28]} 5. cxd5 {[%emt 0:00:30]} Nxd5 {[%emt 0:00:06]} 6. Bg2 {[%emt 0:01:38]} Nb6 {[%emt 0:00:07]} 7. O-O {[%emt 0:00:11]} Be7 {[%emt 0:00:04]} 8. a4 {[%emt 0:02:55]} a5 {[%emt 0:02:32]} 9. d3 {[%emt 0:04:03]} Be6 {[%emt 0:03:05]} 10. Be3 {[%emt 0:06:20]} f5 {[%emt 0:04:18]} 11. Qd2 {[%emt 0:10:33]} h6 {[%emt 0:11:58]} 12. Rfc1 {[%emt 0:02:48]} O-O {[%emt 0:05:31]} 13. Nb5 {[%emt 0:03:26]} Bf6 {[%emt 0:11:33]} 14. Ne1 {[%emt 0:11:48]} Nd5 {[%emt 0:03:03]} 15. Bc5 {[%emt 0:04:43]} Rf7 {[%emt 0:04:12]} 16. Nc2 {[%emt 0:08:29]} Qd7 {[%emt 0:06:50]} 17. e4 {[%emt 0:07:22]} fxe4 {[%emt 0:01:39]} 18. dxe4 {[%emt 0:00:37]} Bg5 {[%emt 0:10:44]} 19. Qe2 {[%emt 0:07:20]} Bxc1 {[%emt 0:00:24]} 20. exd5 {[%emt 0:00:28]} Bxd5 {[%emt 0:00:07]} 21. Nxc7 {[%emt 0:03:15]} Bxg2 {[%emt 0:00:18]} 22. Nxa8 {[%emt 0:00:25]} Bf3 {[%emt 0:00:36]} 23. Nb6 {[%emt 0:05:09]} Bxe2 {[%emt 0:06:18]} 24. Nxd7 {[%emt 0:00:14]} Bxb2 {[%emt 0:00:15]} 25. Rb1 {[%emt 0:02:31]} Bd4 {[%emt 0:04:47]} 26. Nxd4 {[%emt 0:03:35]} exd4 {[%emt 0:00:06]} 27. Rxb7 {[%emt 0:01:58]} Bg4 {[%emt 0:00:41]} 28. Be7 {[%emt 0:02:01]} Rxe7 {[%emt 0:00:14] normal} 0-1

[Event "GER-ch Youth U18 2019"]
[Site "Willingen"]
[Date "2019.06.09"]
[Round "2.2"]
[White "Buckels, Valentin"]
[Black "Vuckovic, Zarko"]
[Result "1-0"]
[ECO "A05"]
[WhiteElo "2443"]
[BlackElo "2132"]
[Annotator "NA"]
[PlyCount "63"]
[EventDate "2019.06.07"]
[EventType "swiss"]
[EventRounds "9"]
[EventCountry "GER"]
[SourceTitle "playchess.com"]
[Source "ChessBase"]
[SourceQuality "1"]
[TimeControl "40/5400+30:1800+30"]

1. Nf3 {[%emt 0:00:00]} Nf6 {[%emt 0:00:00]} 2. g3 {[%emt 0:00:00]} d5 {[%emt 0:00:33]} 3. Bg2 {[%emt 0:00:44]} Nc6 {[%emt 0:01:20]} 4. d4 {[%emt 0:01:39]} Bg4 {[%emt 0:00:53]} 5. h3 {[%emt 0:03:01]} Bxf3 {[%emt 0:02:02]} 6. exf3 {[%emt 0:00:25]} g6 {[%emt 0:02:06]} 7. O-O {[%emt 0:06:12]} Bg7 {[%emt 0:00:05]} 8. c3 {[%emt 0:01:24]} O-O {[%emt 0:01:08]} 9. Re1 {[%emt 0:00:21]} e6 {[%emt 0:00:53]} 10. Nd2 {[%emt 0:04:53]} b6 {[%emt 0:05:13]} 11. Nf1 {[%emt 0:10:34]} Ne7 {[%emt 0:00:26]} 12. g4 {[%emt 0:00:20]} c5 {[%emt 0:00:15]} 13. Be3 {[%emt 0:01:11]} cxd4 {[%emt 0:07:28]} 14. cxd4 {[%emt 0:00:39]} Ne8 {[%emt 0:00:30]} 15. Ng3 {[%emt 0:02:33]} Nd6 {[%emt 0:00:12]} 16. b3 {[%emt 0:03:39]} Nc6 {[%emt 0:01:34]} 17. f4 {[%emt 0:05:37]} Rc8 {[%emt 0:05:15]} 18. Rc1 {[%emt 0:04:54]} Nb5 {[%emt 0:04:11]} 19. Ne2 {[%emt 0:01:44]} Qd7 {[%emt 0:05:21]} 20. Qd2 {[%emt 0:02:31]} Rc7 {[%emt 0:02:30]} 21. f5 {[%emt 0:04:44]} exf5 {[%emt 0:02:04]} 22. gxf5 {[%emt 0:01:47]} Qxf5 {[%emt 0:02:20]} 23. a4 {[%emt 0:13:01]} Nd6 {[%emt 0:00:09]} 24. Ng3 {[%emt 0:00:24]} Qd7 {[%emt 0:00:15]} 25. Bxd5 {[%emt 0:00:51]} Ne7 {[%emt 0:00:18]} 26. Rxc7 {[%emt 0:02:19]} Qxc7 {[%emt 0:01:26]} 27. Bg2 {[%emt 0:00:24]} Ndf5 {[%emt 0:00:19]} 28. Bf4 {[%emt 0:05:03]} Qd7 {[%emt 0:00:29]} 29. d5 {[%emt 0:00:54]} Nh4 {[%emt 0:10:21]} 30. d6 {[%emt 0:02:36]} Nc8 {[%emt 0:01:51]} 31. Ne4 {[%emt 0:06:00]} Re8 {[%emt 0:05:03]} 32. Bg5 {[%emt 0:08:12] normal} 1-0

[Event "GER-ch Youth U18 2019"]
[Site "Willingen"]
[Date "2019.06.09"]
[Round "2.3"]
[White "Maetzkow, Maximilian Paul"]
[Black "Roseneck, Jonas"]
[Result "1/2-1/2"]
[ECO "B90"]
[WhiteElo "2338"]
[BlackElo "2403"]
[Annotator "NA"]
[PlyCount "46"]
[EventDate "2019.06.07"]
[EventType "swiss"]
[EventRounds "9"]
[EventCountry "GER"]
[SourceTitle "playchess.com"]
[Source "ChessBase"]
[SourceQuality "1"]
[TimeControl "40/5400+30:1800+30"]

1. e4 {[%emt 0:00:00]} c5 {[%emt 0:00:00]} 2. Nf3 {[%emt 0:00:00]} d6 {[%emt 0:00:00]} 3. d4 {[%emt 0:00:00]} cxd4 {[%emt 0:00:05]} 4. Nxd4 {[%emt 0:00:00]} Nf6 {[%emt 0:00:03]} 5. Nc3 {[%emt 0:00:02]} a6 {[%emt 0:00:02]} 6. h3 {[%emt 0:00:11]} e5 {[%emt 0:01:30]} 7. Nde2 {[%emt 0:00:06]} h5 {[%emt 0:00:09]} 8. Bg5 {[%emt 0:00:26]} Be6 {[%emt 0:01:47]} 9. Bxf6 {[%emt 0:00:13]} Qxf6 {[%emt 0:00:05]} 10. Nd5 {[%emt 0:00:07]} Qd8 {[%emt 0:00:06]} 11. Nec3 {[%emt 0:00:19]} g6 {[%emt 0:05:51]} 12. Bc4 {[%emt 0:02:07]} Bh6 {[%emt 0:02:45]} 13. O-O {[%emt 0:01:27]} O-O {[%emt 0:03:28]} 14. Qd3 {[%emt 0:02:21]} Nc6 {[%emt 0:01:01]} 15. Rad1 {[%emt 0:01:55]} Rc8 {[%emt 0:06:06]} 16. Bb3 {[%emt 0:10:44]} Nd4 {[%emt 0:03:20]} 17. Ne2 {[%emt 0:20:52]} Nxb3 {[%emt 0:07:30]} 18. Qxb3 {[%emt 0:05:17]} b5 {[%emt 0:05:59]} 19. a4 {[%emt 0:06:17]} Kh8 {[%emt 0:22:52]} 20. axb5 {[%emt 0:03:17]} axb5 {[%emt 0:00:51]} 21. Nec3 {[%emt 0:29:35]} f5 {[%emt 0:11:28]} 22. Qxb5 {[%emt 0:01:02]} fxe4 {[%emt 0:10:06]} 23. Qe2 {[%emt 0:00:37]} Bxd5 {[%emt 0:05:06] normal} 1/2-1/2

[Event "GER-ch Youth U18 2019"]
[Site "Willingen"]
[Date "2019.06.09"]
[Round "2.4"]
[White "Muckle, Julius"]
[Black "Kuznecovs, Nikita"]
[Result "0-1"]
[ECO "E47"]
[WhiteElo "2370"]
[BlackElo "2317"]
[Annotator "NA"]
[PlyCount "47"]
[EventDate "2019.06.07"]
[EventType "swiss"]
[EventRounds "9"]
[EventCountry "GER"]
[SourceTitle "playchess.com"]
[Source "ChessBase"]
[SourceQuality "1"]
[TimeControl "40/5400+30:1800+30"]

1. d4 {[%emt 0:00:00]} Nf6 {[%emt 0:00:00]} 2. c4 {[%emt 0:00:00]} e6 {[%emt 0:00:00]} 3. Nc3 {[%emt 0:00:00]} Bb4 {[%emt 0:00:00]} 4. e3 {[%emt 0:00:00]} O-O {[%emt 0:00:01]} 5. Bd3 {[%emt 0:00:00]} c5 {[%emt 0:00:08]} 6. Nf3 {[%emt 0:00:00]} b6 {[%emt 0:00:06]} 7. O-O {[%emt 0:00:00]} Bb7 {[%emt 0:00:05]} 8. Bd2 {[%emt 0:00:00]} cxd4 {[%emt 0:00:43]} 9. exd4 {[%emt 0:00:00]} d5 {[%emt 0:00:23]} 10. cxd5 {[%emt 0:00:15]} Bxc3 {[%emt 0:18:13]} 11. bxc3 {[%emt 0:00:59]} Qxd5 {[%emt 0:00:07]} 12. Re1 {[%emt 0:05:37]} Nbd7 {[%emt 0:00:22]} 13. Rb1 {[%emt 0:09:46]} Qxa2 {[%emt 0:13:58]} 14. Re3 {[%emt 0:40:33]} Qd5 {[%emt 0:11:42]} 15. Rb5 {[%emt 0:07:09]} Qd6 {[%emt 0:00:20]} 16. Ne5 {[%emt 0:05:05]} Ba6 {[%emt 0:02:10]} 17. Nxd7 {[%emt 0:04:07]} Qxd7 {[%emt 0:00:09]} 18. Rg5 {[%emt 0:00:12]} Bxd3 {[%emt 0:00:09]} 19. Rxd3 {[%emt 0:00:03]} Ne4 {[%emt 0:04:35]} 20. Re5 {[%emt 0:01:39]} Nxd2 {[%emt 0:04:10]} 21. Qxd2 {[%emt 0:00:02]} f6 {[%emt 0:10:18]} 22. Re4 {[%emt 0:02:07]} a5 {[%emt 0:02:20]} 23. Qe2 {[%emt 0:03:55]} Rfe8 {[%emt 0:25:02]} 24. Rde3 {[%emt 0:00:22] normal} 0-1

[Event "GER-ch Youth U18 2019"]
[Site "Willingen"]
[Date "2019.06.09"]
[Round "2.6"]
[White "Arndt, Magnus"]
[Black "Faerber, David"]
[Result "1/2-1/2"]
[ECO "A45"]
[WhiteElo "2186"]
[BlackElo "2293"]
[Annotator "NA"]
[PlyCount "42"]
[EventDate "2019.06.07"]
[EventType "swiss"]
[EventRounds "9"]
[EventCountry "GER"]
[SourceTitle "playchess.com"]
[Source "ChessBase"]
[SourceQuality "1"]
[TimeControl "40/5400+30:1800+30"]

1. d4 {[%emt 0:00:00]} Nf6 {[%emt 0:00:18]} 2. Bf4 {[%emt 0:00:00]} c5 {[%emt 0:00:18]} 3. e3 {[%emt 0:00:06]} cxd4 {[%emt 0:01:14]} 4. exd4 {[%emt 0:00:09]} Qb6 {[%emt 0:00:19]} 5. Na3 {[%emt 0:06:24]} a6 {[%emt 0:15:12]} 6. Nc4 {[%emt 0:01:51]} Qe6+ {[%emt 0:01:44]} 7. Be2 {[%emt 0:03:03]} b5 {[%emt 0:06:20]} 8. Ne3 {[%emt 0:08:54]} Bb7 {[%emt 0:01:49]} 9. Nf3 {[%emt 0:02:25]} g6 {[%emt 0:01:57]} 10. O-O {[%emt 0:02:32]} Bg7 {[%emt 0:00:02]} 11. c3 {[%emt 0:22:19]} O-O {[%emt 0:02:47]} 12. a4 {[%emt 0:00:27]} bxa4 {[%emt 0:15:53]} 13. Qxa4 {[%emt 0:04:52]} d6 {[%emt 0:10:53]} 14. Rfe1 {[%emt 0:07:14]} Qd7 {[%emt 0:09:08]} 15. Nc4 {[%emt 0:09:03]} Nd5 {[%emt 0:05:10]} 16. Bg3 {[%emt 0:01:15]} Qxa4 {[%emt 0:02:41]} 17. Rxa4 {[%emt 0:00:06]} Nc6 {[%emt 0:00:09]} 18. Nfd2 {[%emt 0:07:57]} Rfe8 {[%emt 0:04:17]} 19. Bf3 {[%emt 0:02:40]} Nc7 {[%emt 0:02:11]} 20. h3 {[%emt 0:02:03]} Rab8 {[%emt 0:02:28]} 21. Raa1 {[%emt 0:04:52]} Bf8 {[%emt 0:03:02] normal} 1/2-1/2

[Event "GER-ch Youth U18 2019"]
[Site "Willingen"]
[Date "2019.06.09"]
[Round "2.9"]
[White "Schmider, Niklas"]
[Black "Engel, Robert"]
[Result "1-0"]
[ECO "B90"]
[WhiteElo "2300"]
[BlackElo "2067"]
[Annotator "NA"]
[PlyCount "50"]
[EventDate "2019.06.07"]
[EventType "swiss"]
[EventRounds "9"]
[EventCountry "GER"]
[SourceTitle "playchess.com"]
[Source "ChessBase"]
[SourceQuality "1"]
[TimeControl "40/5400+30:1800+30"]

1. e4 {[%emt 0:00:00]} c5 {[%emt 0:00:00]} 2. Nf3 {[%emt 0:00:00]} d6 {[%emt 0:00:00]} 3. d4 {[%emt 0:00:00]} cxd4 {[%emt 0:00:00]} 4. Nxd4 {[%emt 0:00:00]} Nf6 {[%emt 0:00:00]} 5. Nc3 {[%emt 0:00:00]} a6 {[%emt 0:00:02]} 6. h4 {[%emt 0:00:00]} e5 {[%emt 0:00:46]} 7. Nb3 {[%emt 0:00:00]} Be7 {[%emt 0:03:14]} 8. Bg5 {[%emt 0:00:10]} Be6 {[%emt 0:02:01]} 9. Bxf6 {[%emt 0:00:19]} Bxf6 {[%emt 0:00:49]} 10. g3 {[%emt 0:00:16]} O-O {[%emt 0:04:10]} 11. Qd2 {[%emt 0:00:38]} Be7 {[%emt 0:05:07]} 12. O-O-O {[%emt 0:02:17]} Nd7 {[%emt 0:00:54]} 13. f4 {[%emt 0:03:57]} Nf6 {[%emt 0:20:24]} 14. f5 {[%emt 0:01:07]} Bd7 {[%emt 0:02:23]} 15. g4 {[%emt 0:10:37]} Nxg4 {[%emt 0:04:19]} 16. Rg1 {[%emt 0:03:50]} h5 {[%emt 0:00:19]} 17. Bh3 {[%emt 0:23:36]} Bxh4 {[%emt 0:04:20]} 18. Kb1 {[%emt 0:19:39]} Nf2 {[%emt 0:17:55]} 19. f6 {[%emt 0:14:23]} g6 {[%emt 0:05:39]} 20. Bxd7 {[%emt 0:00:06]} Nxd1 {[%emt 0:01:12]} 21. Nd5 {[%emt 0:00:34]} Kh7 {[%emt 0:04:29]} 22. Bf5 {[%emt 0:05:17]} Nf2 {[%emt 0:02:47]} 23. Qe2 {[%emt 0:01:18]} Kh6 {[%emt 0:03:38]} 24. Qe3+ {[%emt 0:00:32]} g5 {[%emt 0:01:22]} 25. Nd2 {[%emt 0:01:24]} Ng4 {[%emt 0:01:02] normal} 1-0

[Event "GER-ch Youth U18 2019"]
[Site "Willingen"]
[Date "2019.06.09"]
[Round "2.10"]
[White "Schneider, Jana"]
[Black "Runte, Moritz"]
[Result "1/2-1/2"]
[ECO "C44"]
[WhiteElo "2235"]
[BlackElo "2096"]
[Annotator "NA"]
[PlyCount "61"]
[EventDate "2019.06.07"]
[EventType "swiss"]
[EventRounds "9"]
[EventCountry "GER"]
[SourceTitle "playchess.com"]
[Source "ChessBase"]
[SourceQuality "1"]
[TimeControl "40/5400+30:1800+30"]

1. e4 {[%emt 0:00:00]} e5 {[%emt 0:00:00]} 2. Nf3 {[%emt 0:00:00]} Nc6 {[%emt 0:00:00]} 3. d4 {[%emt 0:00:00]} exd4 {[%emt 0:00:00]} 4. Nxd4 {[%emt 0:00:00]} Nf6 {[%emt 0:00:24]} 5. Nc3 {[%emt 0:00:09]} Bb4 {[%emt 0:00:13]} 6. Nxc6 {[%emt 0:00:11]} bxc6 {[%emt 0:00:05]} 7. Bd3 {[%emt 0:00:09]} d5 {[%emt 0:00:12]} 8. exd5 {[%emt 0:00:09]} O-O {[%emt 0:00:07]} 9. O-O {[%emt 0:00:08]} cxd5 {[%emt 0:00:08]} 10. h3 {[%emt 0:00:10]} c6 {[%emt 0:03:08]} 11. Qf3 {[%emt 0:00:26]} Bd6 {[%emt 0:02:00]} 12. Re1 {[%emt 0:06:34]} Rb8 {[%emt 0:06:44]} 13. b3 {[%emt 0:01:50]} Re8 {[%emt 0:05:27]} 14. Bf4 {[%emt 0:04:12]} Be6 {[%emt 0:03:55]} 15. Rad1 {[%emt 0:05:38]} Bxf4 {[%emt 0:07:30]} 16. Qxf4 {[%emt 0:00:13]} Qa5 {[%emt 0:01:20]} 17. Qg3 {[%emt 0:13:55]} Bd7 {[%emt 0:04:42]} 18. Rxe8+ {[%emt 0:04:26]} Rxe8 {[%emt 0:01:52]} 19. a4 {[%emt 0:02:33]} g6 {[%emt 0:03:37]} 20. Ne2 {[%emt 0:01:38]} Ne4 {[%emt 0:01:35]} 21. Bxe4 {[%emt 0:03:32]} Rxe4 {[%emt 0:00:11]} 22. Nd4 {[%emt 0:02:13]} Re1+ {[%emt 0:07:18]} 23. Rxe1 {[%emt 0:00:09]} Qxe1+ {[%emt 0:00:06]} 24. Kh2 {[%emt 0:00:04]} c5 {[%emt 0:12:32]} 25. Nf3 {[%emt 0:02:05]} Qe4 {[%emt 0:04:11]} 26. Qd6 {[%emt 0:03:03]} Bf5 {[%emt 0:02:16]} 27. Ng5 {[%emt 0:01:30]} Qd4 {[%emt 0:03:03]} 28. Nf3 {[%emt 0:11:25]} Qxf2 {[%emt 0:02:47]} 29. Qb8+ {[%emt 0:03:49]} Kg7 {[%emt 0:00:10]} 30. Qe5+ {[%emt 0:01:05]} Kg8 {[%emt 0:01:55]} 31. Qb8+ {[%emt 0:03:30] normal} 1/2-1/2